Workbook

Sheet TDSheet
A2: «Утверждено» | N2: «Утверждено»
A3: Генеральный директор | N3: Начальник лагеря
A4: ООО "Школьное питание"
A5: ___________В.П. Гусева | N5: ____________
A7: Примерное меню питания учащихся летних пришкольных лагерей г. Набережные Челны с 21.06.2021г. по 25.06.2021г. | L7: Стоимость питания Младшие 140руб./день;
A9: № рец | B9: Прием пищи, Наименование блюда | C9: Масса порции, гр | D9: Цена, руб. | E9: Пищевые вещества (гр) | H9: Энерг. ценность (ккал) | I9: Витамины (мг) | M9: Минеральные вещества, мг
E10: Белки | F10: Жиры | G10: Углеводы | I10: B1 | J10: A | K10: C | L10: E | M10: Ca | N10: P | O10: Mg | P10: Fe
A11: Пн, 21 июня 21
A12: Завтрак
B13: Десерт фруктовый Яблоко | C13: 130 | D13: 11.55 | E13: 0.51 | F13: 0.51 | G13: 11.52 | H13: 52.74 | I13: 0.04 | J13: 0.06 | K13: 12.8 | L13: 0.26 | M13: 21.38 | N13: 14.08 | O13: 10.24 | P13: 2.56
A14: ТТК-981 | B14: Каша молочная "5 злаков" (вязкая) с маслом | C14: 200/5 | D14: 15.97 | E14: 6.69 | F14: 8.41 | G14: 27.86 | H14: 213.89 | I14: 0.51 | J14: 0.02 | K14: 6.4 | L14: 0.00 | M14: 1,776.1 | N14: 1,562.55 | O14: 249.97 | P14: 1.66
A15: ТТК №-272н | B15: Кисель из концентрата полусладкий | C15: 200 | D15: 1.98 | E15: 0.1 | F15: 0.00 | G15: 21.48 | H15: 86.3 | I15: 0.00 | J15: 0.00 | K15: 0.96 | L15: 0.00 | M15: 3.36 | N15: 4.32 | O15: 1.44 | P15: 0.1
B16: Хлеб "Рябинушка" | C16: 1/30 | D16: 2.15 | E16: 2.28 | F16: 0.27 | G16: 14.91 | H16: 71.19 | I16: 0.05 | J16: 0.00 | K16: 0.00 | L16: 0.00 | M16: 7.8 | N16: 24.9 | O16: 10.5 | P16: 0.48
D17: =SUM(D13:D16) -> 31.65 | E17: =SUM(E13:E16) -> 9.58 | F17: 9.19 | G17: 75.77 | H17: 424.12 | I17: 0.60 | J17: 0.08 | K17: 20.16 | L17: 0.26 | M17: 1808.64 | N17: 1605.85 | O17: 272.15 | P17: 4.80
A18: Обед
A19: ТТК № - 41н | B19: Салат из свежей капусты с зеленью | C19: 60 | D19: 5.24 | E19: 1.14 | F19: 3.06 | G19: 5.97 | H19: 55.95 | I19: 0.02 | J19: 0.22 | K19: 41.52 | L19: 0.16 | M19: 42.9 | N19: 23.93 | O19: 13.74 | P19: 0.46
A20: 148/2004 | B20: Суп лапша домашняя с цыплятами отварными | C20: 250/25 | D20: 13.78 | E20: 7.89 | F20: 7.07 | G20: 13.96 | H20: 151 | I20: 0.08 | J20: 30.28 | K20: 2.5 | L20: 0.47 | M20: 20.91 | N20: 90.42 | O20: 16.48 | P20: 0.96
A21: 436/04 | B21: Жаркое по-домашнему | C21: 50/150 | D21: 60.08 | E21: 17.28 | F21: 11.7 | G21: 16.16 | H21: 239.01 | I21: 0.26 | J21: 2.7 | K21: 43.23 | L21: 0.58 | M21: 43.05 | N21: 279.03 | O21: 67.42 | P21: 4.03
A22: ттк№-267н | B22: Компот "Плодово-ягодный" из вишни витаминизированный | C22: 200 | D22: 6.82 | E22: 0.24 | F22: 0.00 | G22: 18.15 | H22: 73.57 | I22: 0.01 | J22: 0.00 | K22: 4.51 | L22: 0.09 | M22: 11.1 | N22: 9 | O22: 7.8 | P22: 0.15
B23: Хлеб "Рябинушка" | C23: 1/30 | D23: 2.15 | E23: 2.28 | F23: 0.27 | G23: 14.91 | H23: 71.19 | I23: 0.05 | J23: 0.00 | K23: 0.00 | L23: 0.00 | M23: 7.8 | N23: 24.9 | O23: 10.5 | P23: 0.48
B24: Хлеб "Дарницкий" | C24: 1/41,43 | D24: 2.41 | E24: 2.27 | F24: 0.45 | G24: 17.58 | H24: 83.43 | I24: 0.00 | J24: 0.00 | K24: 0.00 | L24: 0.00 | M24: 0.00 | N24: 0.00 | O24: 0.00 | P24: 0.00
D25: =SUM(D19:D24) -> 90.48 | E25: =SUM(E19:E24) -> 31.10 | F25: 22.55 | G25: 86.73 | H25: 674.15 | I25: 0.42 | J25: 33.20 | K25: 91.76 | L25: 1.30 | M25: 125.76 | N25: 427.28 | O25: 115.94 | P25: 6.08
A26: Полдник
A27: 698/04 | B27: Простокваша | C27: 200 | D27: 17.21 | E27: 6.12 | F27: 5.28 | G27: 8.65 | H27: 106.56 | I27: 0.06 | J27: 42.2 | K27: 1.69 | L27: 0.00 | M27: 248.98 | N27: 202.56 | O27: 33.76 | P27: 0.21
A28: 741/04 | B28: Ватрушка с творогом | C28: 75 | D28: 13.42 | E28: 9.25 | F28: 3.93 | G28: 33.62 | H28: 206.89 | I28: 0.15 | J28: 0.02 | K28: 0.14 | L28: 1.24 | M28: 53.54 | N28: 14.3 | O28: 1.4 | P28: 0.77
D29: =SUM(D27:D28) -> 30.63 | E29: =SUM(E27:E28) -> 15.37 | F29: 9.21 | G29: 42.27 | H29: 313.45 | I29: 0.21 | J29: 42.22 | K29: 1.83 | L29: 1.24 | M29: 302.52 | N29: 216.86 | O29: 35.16 | P29: 0.98
D30: =D17+D25+D29 -> 152.76 | E30: =E17+E25+E29 -> 56.05 | F30: 40.95 | G30: 204.77 | H30: 1411.72 | I30: 1.23 | J30: 75.50 | K30: 113.75 | L30: 2.80 | M30: 2236.92 | N30: 2249.99 | O30: 423.25 | P30: 11.86
A31: Вт, 22 июня 21
A32: Завтрак
B33: Десерт фруктовый Апельсин | C33: 100 | D33: 9.17 | E33: 0.9 | F33: 0.00 | G33: 8.4 | H33: 37.2 | I33: 0.04 | J33: 0.00 | K33: 60 | L33: 0.22 | M33: 34 | N33: 23 | O33: 13 | P33: 0.3
A34: 340/2004 | B34: Омлет натуральный с маслом | C34: 150/5 | D34: 25.47 | E34: 15.84 | F34: 24.27 | G34: 3.03 | H34: 293.88 | I34: 0.22 | J34: 0.4 | K34: 1.71 | L34: 2.28 | M34: 543.67 | N34: 665.58 | O34: 81.1 | P34: 3.34
A35: ТТК-475 | B35: Чай полусладкий | C35: 200 | D35: 0.76 | E35: 0.2 | F35: 0.00 | G35: 5.06 | H35: 21.04 | I35: 0.00 | J35: 0.00 | K35: 0.1 | L35: 0.00 | M35: 4.95 | N35: 8.25 | O35: 4.4 | P35: 0.82
B36: Хлеб "Рябинушка" | C36: 1/30 | D36: 2.15 | E36: 2.28 | F36: 0.27 | G36: 14.91 | H36: 71.19 | I36: 0.05 | J36: 0.00 | K36: 0.00 | L36: 0.00 | M36: 7.8 | N36: 24.9 | O36: 10.5 | P36: 0.48
D37: =SUM(D33:D36) -> 37.55 | E37: =SUM(E33:E36) -> 19.22 | F37: 24.54 | G37: 31.40 | H37: 423.31 | I37: 0.31 | J37: 0.40 | K37: 61.81 | L37: 2.50 | M37: 590.42 | N37: 721.73 | O37: 109.00 | P37: 4.94
A38: Обед
A39: ттк №92н | B39: Винегрет "Дары осени" | C39: 60 | D39: 6.34 | E39: 1.26 | F39: 4.26 | G39: 4.82 | H39: 62.69 | I39: 0.04 | J39: 22.68 | K39: 8.94 | L39: 0.12 | M39: 19.64 | N39: 35.74 | O39: 16.72 | P39: 0.78
A40: 139/04 | B40: Суп картофельный с бобовыми (горох) с зеленью (укроп) | C40: 250/1 | D40: 10.04 | E40: 6.7 | F40: 4.55 | G40: 28.77 | H40: 182.81 | I40: 0.15 | J40: 0.00 | K40: 19.56 | L40: 0.55 | M40: 32.88 | N40: 79.07 | O40: 27.37 | P40: 1.66
A41: ТТК-53к | B41: Мякоть птицы тушеная в соусе | C41: 50/50 | D41: 25.39 | E41: 21.09 | F41: 7.64 | G41: 3.79 | H41: 168.27 | I41: 0.08 | J41: 13.2 | K41: 1.29 | L41: 0.64 | M41: 17.81 | N41: 176.88 | O41: 88.7 | P41: 1.57
A42: 510/04 | B42: Каша гречневая вязкая | C42: 150 | D42: 6.50 | E42: 4.62 | F42: 5.28 | G42: 24.83 | H42: 165.34 | I42: 0.19 | J42: 0.00 | K42: 0.00 | L42: 0.03 | M42: 32.19 | N42: 109.62 | O42: 36.21 | P42: 2.97
A43: ТТК №-106н | B43: Напиток "Фруктовый"из сухофруктов (полусладкий) витаминизированный | C43: 200 | D43: 3.12 | E43: 0.5 | F43: 0.02 | G43: 14.44 | H43: 59.97 | I43: 0.00 | J43: 0.02 | K43: 0.04 | L43: 0.00 | M43: 8.25 | N43: 2.97 | O43: 1.46 | P43: 0.05
B44: Хлеб "Рябинушка" | C44: 1/30 | D44: 2.15 | E44: 2.28 | F44: 0.27 | G44: 14.91 | H44: 71.19 | I44: 0.05 | J44: 0.00 | K44: 0.00 | L44: 0.00 | M44: 7.8 | N44: 24.9 | O44: 10.5 | P44: 0.48
B45: Хлеб "Дарницкий" | C45: 1/41,43 | D45: 2.41 | E45: 2.27 | F45: 0.45 | G45: 17.58 | H45: 83.43 | I45: 0.00 | J45: 0.00 | K45: 0.00 | L45: 0.00 | M45: 0.00 | N45: 0.00 | O45: 0.00 | P45: 0.00
D46: =SUM(D39:D45) -> 55.95 | E46: =SUM(E39:E45) -> 38.72 | F46: 22.47 | G46: 109.14 | H46: 793.70 | I46: 0.51 | J46: 35.90 | K46: 29.83 | L46: 1.34 | M46: 118.57 | N46: 429.18 | O46: 180.96 | P46: 7.51
A47: Полдник
B48: Десерт Мороженое пломбир в сахарном печенье "Детское" 100г | C48: 100 | D48: 34.18 | E48: 0.00 | F48: 0.00 | G48: 0.00 | H48: 0.00 | I48: 0.00 | J48: 0.00 | K48: 0.00 | L48: 0.00 | M48: 0.00 | N48: 0.00 | O48: 0.00 | P48: 0.00
D49: =D48 -> 34.18 | E49: =E48 -> 0.00 | F49: 0.00 | G49: 0.00 | H49: 0.00 | I49: 0.00 | J49: 0.00 | K49: 0.00 | L49: 0.00 | M49: 0.00 | N49: 0.00 | O49: 0.00 | P49: 0.00
D50: =D37+D46+D49 -> 127.68 | E50: =E37+E46+E49 -> 57.94 | F50: 47.01 | G50: 140.54 | H50: 1217.01 | I50: 0.82 | J50: 36.30 | K50: 91.64 | L50: 3.84 | M50: 708.99 | N50: 1150.91 | O50: 289.96 | P50: 12.45
A51: Ср, 23 июня 21
A52: Завтрак
A53: 7/10 | B53: Сыр голландский (порц) | C53: 10 | D53: 7.45 | E53: 2.92 | F53: 2.98 | G53: 0.00 | H53: 38.47 | I53: 0.00 | J53: 0.00 | K53: 0.31 | L53: 0.03 | M53: 113.36 | N53: 59.3 | O53: 6.1 | P53: 0.12
A54: 302/04 | B54: Каша молочная пшеничная с маслом | C54: 200/5 | D54: 11.33 | E54: 9.21 | F54: 7.07 | G54: 46.08 | H54: 284.86 | I54: 0.46 | J54: 0.01 | K54: 3.84 | L54: 3 | M54: 1,067.62 | N54: 1,068.41 | O54: 150.13 | P54: 4.22
A55: ттк№253н | B55: Чай "Витаминный"полусладкий | C55: 200 | D55: 3.57 | E55: 0.76 | F55: 0.03 | G55: 17.62 | H55: 73.83 | I55: 0.01 | J55: 0.02 | K55: 0.09 | L55: 0.00 | M55: 13.48 | N55: 8.09 | O55: 4.14 | P55: 0.47
B56: Хлеб "Рябинушка" | C56: 1/30 | D56: 2.15 | E56: 2.28 | F56: 0.27 | G56: 14.91 | H56: 71.19 | I56: 0.05 | J56: 0.00 | K56: 0.00 | L56: 0.00 | M56: 7.8 | N56: 24.9 | O56: 10.5 | P56: 0.48
D57: =SUM(D53:D56) -> 24.50 | E57: =SUM(E53:E56) -> 15.17 | F57: 10.35 | G57: 78.61 | H57: 468.35 | I57: 0.52 | J57: 0.03 | K57: 4.24 | L57: 3.03 | M57: 1202.26 | N57: 1160.70 | O57: 170.87 | P57: 5.29
A58: Обед
B59: Огурец свежий порциями | C59: 60 | D59: 7.08 | E59: 0.43 | F59: 0.00 | G59: 1.1 | H59: 6.12 | I59: 0.02 | J59: 0.00 | K59: 4.28 | L59: 0.06 | M59: 10.4 | N59: 25.7 | O59: 0.00 | P59: 0.31
A60: 110/04 | B60: Борщ из свежей капусты с картофелем со сметаной | C60: 250/5 | D60: 13.75 | E60: 2.31 | F60: 4.52 | G60: 13.66 | H60: 104.57 | I60: 0.07 | J60: 29.91 | K60: 30 | L60: 0.23 | M60: 48.31 | N60: 69.62 | O60: 30.91 | P60: 1.41
A61: ТТК-89н | B61: Биточки рыбные "Морячка" с овощами (зеленый горошек консервированный) | C61: 75/15 | D61: 24.84 | E61: 14.28 | F61: 7.41 | G61: 7.92 | H61: 155.52 | I61: 0.03 | J61: 0.00 | K61: 4.28 | L61: 0.6 | M61: 35.17 | N61: 12.24 | O61: 27.75 | P61: 0.84
A62: 520/04 | B62: Пюре картофельное | C62: 150 | D62: 15.24 | E62: 3.52 | F62: 4.61 | G62: 16.21 | H62: 120.43 | I62: 0.22 | J62: 2.88 | K62: 43.15 | L62: 0.24 | M62: 52.22 | N62: 147.14 | O62: 52.68 | P62: 1.76
A63: ТТК №-264н | B63: Компот "Плодово-ягодный" из чёрной смородины витаминизированный | C63: 200 | D63: 6.88 | E63: 0.23 | F63: 0.02 | G63: 16.2 | H63: 65.9 | I63: 0.01 | J63: 0.00 | K63: 41.01 | L63: 0.15 | M63: 7.38 | N63: 6.77 | O63: 6.36 | P63: 0.27
B64: Хлеб "Рябинушка" | C64: 1/30 | D64: 2.15 | E64: 2.28 | F64: 0.27 | G64: 14.91 | H64: 71.19 | I64: 0.05 | J64: 0.00 | K64: 0.00 | L64: 0.00 | M64: 7.8 | N64: 24.9 | O64: 10.5 | P64: 0.48
B65: Хлеб "Дарницкий" | C65: 1/41,43 | D65: 2.41 | E65: 2.27 | F65: 0.45 | G65: 17.58 | H65: 83.43 | I65: 0.00 | J65: 0.00 | K65: 0.00 | L65: 0.00 | M65: 0.00 | N65: 0.00 | O65: 0.00 | P65: 0.00
D66: =SUM(D59:D65) -> 72.35 | E66: =SUM(E59:E65) -> 25.32 | F66: 17.28 | G66: 87.58 | H66: 607.16 | I66: 0.40 | J66: 32.79 | K66: 122.72 | L66: 1.28 | M66: 161.28 | N66: 286.37 | O66: 128.20 | P66: 5.07
A67: Полдник
A68: 686/04 | B68: Сок 0,2 | C68: 200 | D68: 11.14 | E68: 2.9 | F68: 3.18 | G68: 34 | H68: 176.22 | I68: 0.02 | J68: 0.00 | K68: 14 | L68: 0.00 | M68: 34 | N68: 36 | O68: 12 | P68: 0.6
A69: ТТК №8К | B69: Плюшка "Новомосковская " | C69: 100 | D69: 3.73 | E69: 8.63 | F69: 7.19 | G69: 65.28 | H69: 360.38 | I69: 0.25 | J69: 0.01 | K69: 0.31 | L69: 2.04 | M69: 106.44 | N69: 86.02 | O69: 13.6 | P69: 1.17
D70: =SUM(D68:D69) -> 14.87 | E70: =SUM(E68:E69) -> 11.53 | F70: 10.37 | G70: 99.28 | H70: 536.60 | I70: 0.27 | J70: 0.01 | K70: 14.31 | L70: 2.04 | M70: 140.44 | N70: 122.02 | O70: 25.60 | P70: 1.77
D71: =D57+D66+D70 -> 111.72 | E71: =E57+E66+E70 -> 52.02 | F71: 38.00 | G71: 265.47 | H71: 1612.11 | I71: 1.19 | J71: 32.83 | K71: 141.27 | L71: 6.35 | M71: 1503.98 | N71: 1569.09 | O71: 324.67 | P71: 12.13
A72: Чт, 24 июня 21
A73: Завтрак
B74: Десерт фруктовый Апельсин | C74: 100 | D74: 9.17 | E74: 0.9 | F74: 0.00 | G74: 8.4 | H74: 37.2 | I74: 0.04 | J74: 0.00 | K74: 60 | L74: 0.22 | M74: 34 | N74: 23 | O74: 13 | P74: 0.3
A75: ттк-1019 | B75: Сырники "Домашние"из творога со сгущ.молоком | C75: 150/20 | D75: 63.39 | E75: 25.93 | F75: 13.38 | G75: 33.75 | H75: 359.12 | I75: 0.12 | J75: 0.02 | K75: 0.88 | L75: 1.16 | M75: 274.4 | N75: 55.5 | O75: 7.62 | P75: 1.01
A76: ТТК-475 | B76: Чай полусладкий | C76: 200 | D76: 0.76 | E76: 0.2 | F76: 0.00 | G76: 5.06 | H76: 21.04 | I76: 0.00 | J76: 0.00 | K76: 0.1 | L76: 0.00 | M76: 4.95 | N76: 8.25 | O76: 4.4 | P76: 0.82
B77: Хлеб "Рябинушка" | C77: 1/30 | D77: 2.15 | E77: 2.28 | F77: 0.27 | G77: 14.91 | H77: 71.19 | I77: 0.05 | J77: 0.00 | K77: 0.00 | L77: 0.00 | M77: 7.8 | N77: 24.9 | O77: 10.5 | P77: 0.48
D78: =SUM(D74:D77) -> 75.47 | E78: =SUM(E74:E77) -> 29.31 | F78: 13.65 | G78: 62.12 | H78: 488.55 | I78: 0.21 | J78: 0.02 | K78: 60.98 | L78: 1.38 | M78: 321.15 | N78: 111.65 | O78: 35.52 | P78: 2.61
A79: Обед
A80: 2021-10-15 | B80: Салат из свежих помидоров и огурцов | C80: 60 | D80: 8.84 | E80: 0.62 | F80: 3.64 | G80: 2.13 | H80: 43.71 | I80: 0.03 | J80: 0.00 | K80: 10.39 | L80: 0.15 | M80: 12.16 | N80: 21.86 | O80: 10.16 | P80: 0.47
A81: 132/04 | B81: Рассольник "Ленинградский" со сметаной | C81: 250/5 | D81: 13.71 | E81: 2.88 | F81: 4.56 | G81: 14.39 | H81: 110.11 | I81: 0.14 | J81: 29.38 | K81: 27.17 | L81: 0.26 | M81: 30.68 | N81: 107.75 | O81: 42.71 | P81: 1.48
A82: 437/04 | B82: Гуляш | C82: 50/50 | D82: 46.35 | E82: 15.99 | F82: 5.88 | G82: 3.74 | H82: 131.82 | I82: 0.11 | J82: 1.8 | K82: 2.64 | L82: 0.12 | M82: 16.77 | N82: 167.02 | O82: 23.95 | P82: 2.09
A83: 510/04 | B83: Каша рисовая вязкая | C83: 150 | D83: 5.16 | E83: 2.31 | F83: 4 | G83: 20.42 | H83: 126.93 | I83: 0.03 | J83: 2.36 | K83: 0.00 | L83: 0.00 | M83: 14.52 | N83: 32.86 | O83: 7.13 | P83: 0.63
A84: ттк№-268н | B84: Компот "Плодово-ягодный" из кураги витаминизированный | C84: 200 | D84: 5.85 | E84: 0.51 | F84: 0.08 | G84: 19.38 | H84: 80.24 | I84: 0.00 | J84: 0.03 | K84: 0.16 | L84: 0.65 | M84: 8.25 | N84: 10.65 | O84: 4.8 | P84: 0.41
B85: Хлеб "Рябинушка" | C85: 1/30 | D85: 2.15 | E85: 2.28 | F85: 0.27 | G85: 14.91 | H85: 71.19 | I85: 0.05 | J85: 0.00 | K85: 0.00 | L85: 0.00 | M85: 7.8 | N85: 24.9 | O85: 10.5 | P85: 0.48
B86: Хлеб "Дарницкий" | C86: 1/41,43 | D86: 2.41 | E86: 2.27 | F86: 0.45 | G86: 17.58 | H86: 83.43 | I86: 0.00 | J86: 0.00 | K86: 0.00 | L86: 0.00 | M86: 0.00 | N86: 0.00 | O86: 0.00 | P86: 0.00
D87: =SUM(D80:D86) -> 84.47 | E87: =SUM(E80:E86) -> 26.86 | F87: 18.88 | G87: 92.55 | H87: 647.43 | I87: 0.36 | J87: 33.57 | K87: 40.36 | L87: 1.18 | M87: 90.18 | N87: 365.04 | O87: 99.25 | P87: 5.56
A88: Полдник
B89: Ацидофилин | C89: 200 | D89: 18.63 | E89: 5.8 | F89: 5 | G89: 8 | H89: 100.2 | I89: 0.08 | J89: 0.00 | K89: 1.4 | L89: 0.00 | M89: 240 | N89: 180 | O89: 28 | P89: 0.2
B90: Вафли в индивидуальной упаковке | C90: 20 | D90: 6.08 | E90: 8.63 | F90: 7.19 | G90: 65.28 | H90: 360.38 | I90: 0.25 | J90: 0.01 | K90: 0.31 | L90: 2.04 | M90: 106.44 | N90: 86.02 | O90: 13.6 | P90: 1.17
D91: =SUM(D89:D90) -> 24.71 | E91: =SUM(E89:E90) -> 14.43 | F91: 12.19 | G91: 73.28 | H91: 460.58 | I91: 0.33 | J91: 0.01 | K91: 1.71 | L91: 2.04 | M91: 346.44 | N91: 266.02 | O91: 41.60 | P91: 1.37
D92: =D78+D87+D91 -> 184.65 | E92: =E78+E87+E91 -> 70.60 | F92: 44.72 | G92: 227.95 | H92: 1596.56 | I92: 0.90 | J92: 33.60 | K92: 103.05 | L92: 4.60 | M92: 757.77 | N92: 742.71 | O92: 176.37 | P92: 9.54
A93: Пт, 25 июня 21
A94: Завтрак
B95: Десерт фруктовый Банан | C95: 170 | D95: 20.85 | E95: 2.55 | F95: 0.00 | G95: 38.08 | H95: 162.52 | I95: 0.07 | J95: 0.00 | K95: 17 | L95: 0.68 | M95: 13.6 | N95: 47.6 | O95: 71.4 | P95: 1.02
A96: 311/04 | B96: Каша молочная кукурузная с маслом | C96: 200/5 | D96: 12.31 | E96: 6.32 | F96: 7.12 | G96: 39.98 | H96: 249.35 | I96: 0.43 | J96: 0.01 | K96: 20.83 | L96: 0.00 | M96: 1,137.56 | N96: 1,121.96 | O96: 196.02 | P96: 1.79
A97: ТТК №-272н | B97: Кисель из концентрата полусладкий | C97: 200 | D97: 1.98 | E97: 0.1 | F97: 0.00 | G97: 21.48 | H97: 86.3 | I97: 0.00 | J97: 0.00 | K97: 0.96 | L97: 0.00 | M97: 3.36 | N97: 4.32 | O97: 1.44 | P97: 0.1
B98: Хлеб "Рябинушка" | C98: 1/30 | D98: 2.15 | E98: 2.28 | F98: 0.27 | G98: 14.91 | H98: 71.19 | I98: 0.05 | J98: 0.00 | K98: 0.00 | L98: 0.00 | M98: 7.8 | N98: 24.9 | O98: 10.5 | P98: 0.48
D99: =SUM(D95:D98) -> 37.29 | E99: =SUM(E95:E98) -> 11.25 | F99: 7.39 | G99: 114.45 | H99: 569.36 | I99: 0.55 | J99: 0.01 | K99: 38.79 | L99: 0.68 | M99: 1162.32 | N99: 1198.78 | O99: 279.36 | P99: 3.39
A100: Обед
B101: Помидоры свежие | C101: 60 | D101: 11.13 | E101: 0.67 | F101: 0.00 | G101: 1.77 | H101: 9.79 | I101: 0.04 | J101: 0.00 | K101: 15.3 | L101: 0.24 | M101: 8.57 | N101: 15.91 | O101: 12.24 | P101: 0.55
A102: 135/04 | B102: Суп из овощей с мясными фрикадельками со сметаной | C102: 250/25/5 | D102: 23.64 | E102: 7.39 | F102: 8.67 | G102: 10.92 | H102: 151.25 | I102: 0.15 | J102: 1.67 | K102: 32.54 | L102: 0.39 | M102: 50.46 | N102: 134.14 | O102: 34.81 | P102: 2.24
A103: ттк№-202н | B103: Котлеты "Крестьянские" с овощами (зеленый горошек консервированный) | C103: 75/15 | D103: 29.46 | E103: 9.39 | F103: 10.66 | G103: 9.89 | H103: 172.99 | I103: 0.1 | J103: 0.01 | K103: 2.64 | L103: 0.23 | M103: 10.66 | N103: 94.76 | O103: 16.27 | P103: 1.07
A104: 516/04 | B104: Макаронные изделия отварные | C104: 150 | D104: 5.47 | E104: 5.36 | F104: 4.37 | G104: 36.54 | H104: 206.89 | I104: 0.09 | J104: 2.36 | K104: 0.00 | L104: 1.07 | M104: 15.96 | N104: 45.95 | O104: 8.52 | P104: 0.87
A105: ТТК №-106н | B105: Напиток "Фруктовый"из сухофруктов (полусладкий) витаминизированный | C105: 200 | D105: 3.12 | E105: 0.5 | F105: 0.02 | G105: 14.44 | H105: 59.97 | I105: 0.00 | J105: 0.02 | K105: 0.04 | L105: 0.00 | M105: 8.25 | N105: 2.97 | O105: 1.46 | P105: 0.05
B106: Хлеб "Рябинушка" | C106: 1/30 | D106: 2.15 | E106: 2.28 | F106: 0.27 | G106: 14.91 | H106: 71.19 | I106: 0.05 | J106: 0.00 | K106: 0.00 | L106: 0.00 | M106: 7.8 | N106: 24.9 | O106: 10.5 | P106: 0.48
B107: Хлеб "Дарницкий" | C107: 1/41,43 | D107: 2.41 | E107: 2.27 | F107: 0.45 | G107: 17.58 | H107: 83.43 | I107: 0.00 | J107: 0.00 | K107: 0.00 | L107: 0.00 | M107: 0.00 | N107: 0.00 | O107: 0.00 | P107: 0.00
D108: =SUM(D101:D107) -> 77.38 | E108: =SUM(E101:E107) -> 27.86 | F108: 24.44 | G108: 106.05 | H108: 755.51 | I108: 0.43 | J108: 4.06 | K108: 50.52 | L108: 1.93 | M108: 101.70 | N108: 318.63 | O108: 83.80 | P108: 5.26
A109: Полдник
A110: ттк-475 | B110: Чай полусладкий с блинчиком с повидлом | C110: 200/63 | D110: 5.68 | E110: 2.98 | F110: 4.18 | G110: 39.06 | H110: 205.8 | I110: 0.06 | J110: 0.00 | K110: 0.13 | L110: 0.00 | M110: 151.7 | N110: 158.26 | O110: 29.96 | P110: 1.95
D111: =D110 -> 5.68 | E111: =E110 -> 2.98 | F111: 4.18 | G111: 39.06 | H111: 205.80 | I111: 0.06 | J111: 0.00 | K111: 0.13 | L111: 0.00 | M111: 151.70 | N111: 158.26 | O111: 29.96 | P111: 1.95
D112: =D99+D108+D111 -> 120.35 | E112: =E99+E108+E111 -> 42.09 | F112: 36.01 | G112: 259.56 | H112: 1530.67 | I112: 1.04 | J112: 4.07 | K112: 89.44 | L112: 2.61 | M112: 1415.72 | N112: 1675.67 | O112: 393.12 | P112: 10.60
C114: Масса порции, гр | D114: Цена, руб. | E114: Пищевые вещества (гр) | F114: Пищевые вещества (гр) | G114: Пищевые вещества (гр) | H114: Энерг. ценность (ккал) | I114: Витамины (мг) | J114: Витамины (мг) | K114: Витамины (мг) | L114: Витамины (мг) | M114: Минеральные вещества, мг | N114: Минеральные вещества, мг | O114: Минеральные вещества, мг | P114: Минеральные вещества, мг
E115: Белки | F115: Жиры | G115: Углеводы | I115: B1 | J115: A | K115: C | L115: E | M115: Ca | N115: P | O115: Mg | P115: Fe
A116: ИТОГО ЗА 5 дней | D116: =D30+D50+D71+D92+D112 -> 697.16 | E116: 288.75 | F116: 296.25 | G116: 1256.25 | H116: 8,846.25 | I116: 4.5 | J116: 2.7 | K116: 225.00 | L116: 35.70 | M116: 4,125.00 | N116: 4,125.00 | O116: 937.50 | P116: 45.00
A117: В среднем в день: | D117: =D116/5 -> 139.43 | E117: 57.75 | F117: 59.25 | G117: 251.25 | H117: 1,769.25 | I117: 0.90 | J117: 0.53 | K117: 45.00 | L117: 7.14 | M117: 825.00 | N117: 825.00 | O117: 187.50 | P117: 9.00
L121: Зав. Производством:
L125: Мед. Работник:
